[Event "Early-Titled-Tuesday-Blitz-January-16-2024"]
[Site "Chess.com"]
[Date "2024.01.16"]
[Round "11"]
[White "GMJustin"]
[Black "FMVolodymyrSakun"]
[Result "1-0"]
[WhiteElo "2344"]
[BlackElo "2525"]
[TimeControl "180+1"]
[EndTime "10:10:04 PST"]
[Termination "GMJustin won by checkmate"]

1. e4 {[%clk 0:02:40.1]} 1... d6 {[%clk 0:02:59]} 2. d4 {[%clk 0:02:36.1]} 2...
Nf6 {[%clk 0:02:58.5]} 3. Nc3 {[%clk 0:02:34]} 3... g6 {[%clk 0:02:58.2]} 4. Nf3
{[%clk 0:02:28.9]} 4... Bg7 {[%clk 0:02:57.3]} 5. Bg5 {[%clk 0:02:28.7]} 5... h6
{[%clk 0:02:55.4]} 6. Bh4 {[%clk 0:02:28.4]} 6... O-O {[%clk 0:02:54.6]} 7. Be2
{[%clk 0:02:18.2]} 7... Bg4 {[%clk 0:02:43.7]} 8. h3 {[%clk 0:02:04]} 8... Bxf3
{[%clk 0:02:37.6]} 9. Bxf3 {[%clk 0:02:04.9]} 9... Nc6 {[%clk 0:02:32.6]} 10.
Ne2 {[%clk 0:01:53.5]} 10... e5 {[%clk 0:02:28.5]} 11. O-O {[%clk 0:00:55.5]}
11... g5 {[%clk 0:02:08.6]} 12. Bg3 {[%clk 0:00:54.4]} 12... Re8 {[%clk
0:01:54.3]} 13. d5 {[%clk 0:00:35.7]} 13... Ne7 {[%clk 0:01:53.5]} 14. c4 {[%clk
0:00:34.4]} 14... Rf8 {[%clk 0:01:37.6]} 15. Nc3 {[%clk 0:00:34.2]} 15... Nd7
{[%clk 0:01:33.4]} 16. Bg4 {[%clk 0:00:34.2]} 16... f5 {[%clk 0:01:31.9]} 17.
exf5 {[%clk 0:00:33.1]} 17... Nxf5 {[%clk 0:01:31.7]} 18. Bxf5 {[%clk
0:00:31.7]} 18... Rxf5 {[%clk 0:01:31.3]} 19. Qg4 {[%clk 0:00:31.5]} 19... Rf7
{[%clk 0:01:17.3]} 20. h4 {[%clk 0:00:29.2]} 20... Nf6 {[%clk 0:01:13.8]} 21.
Qe2 {[%clk 0:00:28.1]} 21... g4 {[%clk 0:01:02.4]} 22. Ne4 {[%clk 0:00:27.8]}
22... Nxe4 {[%clk 0:01:00.4]} 23. Qxe4 {[%clk 0:00:27.3]} 23... Qd7 {[%clk
0:00:54.2]} 24. f3 {[%clk 0:00:25.7]} 24... gxf3 {[%clk 0:00:47.6]} 25. Rxf3
{[%clk 0:00:25.7]} 25... Rxf3 {[%clk 0:00:46.8]} 26. Qxf3 {[%clk 0:00:25.8]}
26... Rf8 {[%clk 0:00:46.5]} 27. Qe4 {[%clk 0:00:23.8]} 27... Qf5 {[%clk
0:00:46]} 28. Qxf5 {[%clk 0:00:20.7]} 28... Rxf5 {[%clk 0:00:45.6]} 29. Rf1
{[%clk 0:00:21]} 29... Rxf1+ {[%clk 0:00:42.6]} 30. Kxf1 {[%clk 0:00:21.2]}
30... Kf7 {[%clk 0:00:35.1]} 31. Ke2 {[%clk 0:00:16.8]} 31... Kg6 {[%clk
0:00:30.7]} 32. Bf2 {[%clk 0:00:16.8]} 32... Kf5 {[%clk 0:00:25.3]} 33. Bxa7
{[%clk 0:00:16.4]} 33... b6 {[%clk 0:00:20.5]} 34. Bb8 {[%clk 0:00:15.6]} 34...
Bf6 {[%clk 0:00:19.5]} 35. Bxc7 {[%clk 0:00:15.5]} 35... Be7 {[%clk 0:00:19.7]}
36. Bxb6 {[%clk 0:00:15.2]} 36... Bxh4 {[%clk 0:00:19.9]} 37. a4 {[%clk
0:00:14.4]} 37... e4 {[%clk 0:00:18.2]} 38. a5 {[%clk 0:00:14.4]} 38... Ke5
{[%clk 0:00:15.7]} 39. a6 {[%clk 0:00:14.4]} 39... Kf4 {[%clk 0:00:14.3]} 40. a7
{[%clk 0:00:14.1]} 40... Kg3 {[%clk 0:00:14.8]} 41. Bf2+ {[%clk 0:00:13.5]}
41... Kxg2 {[%clk 0:00:15.7]} 42. Bxh4 {[%clk 0:00:13.4]} 42... h5 {[%clk
0:00:14.4]} 43. a8=Q {[%clk 0:00:12.1]} 43... Kh3 {[%clk 0:00:15.3]} 44. Qc8+
{[%clk 0:00:10.8]} 44... Kxh4 {[%clk 0:00:14.9]} 45. Qf5 {[%clk 0:00:10.4]}
45... Kg3 {[%clk 0:00:14.8]} 46. Qxh5 {[%clk 0:00:10.4]} 46... Kf4 {[%clk
0:00:14.3]} 47. b3 {[%clk 0:00:07.7]} 47... e3 {[%clk 0:00:13.9]} 48. Qh4+
{[%clk 0:00:07.8]} 48... Ke5 {[%clk 0:00:13.4]} 49. Kxe3 {[%clk 0:00:07.7]}
49... Kf5 {[%clk 0:00:12.5]} 50. b4 {[%clk 0:00:07.7]} 50... Ke5 {[%clk
0:00:12.6]} 51. Qg5# {[%clk 0:00:08.1]} 1-0

[Event "Early-Titled-Tuesday-Blitz-January-16-2024"]
[Site "Chess.com"]
[Date "2024.01.16"]
[Round "11"]
[White "JMCadavid1998"]
[Black "jefferyx"]
[Result "0-1"]
[WhiteElo "2295"]
[BlackElo "2997"]
[TimeControl "180+1"]
[EndTime "10:10:07 PST"]
[Termination "jefferyx won by resignation"]

1. d4 {[%clk 0:02:59.3]} 1... g6 {[%clk 0:03:00.9]} 2. e4 {[%clk 0:02:58.7]}
2... Bg7 {[%clk 0:03:01.3]} 3. Nf3 {[%clk 0:02:58.8]} 3... d6 {[%clk 0:03:01.5]}
4. Be2 {[%clk 0:02:58.2]} 4... Nf6 {[%clk 0:02:58.8]} 5. Nbd2 {[%clk 0:02:58.8]}
5... O-O {[%clk 0:02:58.4]} 6. O-O {[%clk 0:02:59.4]} 6... Nbd7 {[%clk
0:02:57.9]} 7. c3 {[%clk 0:02:59.8]} 7... e5 {[%clk 0:02:58.1]} 8. dxe5 {[%clk
0:02:58.9]} 8... dxe5 {[%clk 0:02:56.8]} 9. Qc2 {[%clk 0:02:59]} 9... b6 {[%clk
0:02:56.6]} 10. a4 {[%clk 0:02:58.8]} 10... a6 {[%clk 0:02:56.2]} 11. Re1 {[%clk
0:02:43.9]} 11... Bb7 {[%clk 0:02:56.6]} 12. Bf1 {[%clk 0:02:43.9]} 12... Re8
{[%clk 0:02:53.3]} 13. Nc4 {[%clk 0:02:43.1]} 13... Nc5 {[%clk 0:02:52.4]} 14.
Nfd2 {[%clk 0:02:39.2]} 14... Qe7 {[%clk 0:02:35]} 15. b4 {[%clk 0:02:35.3]}
15... Ncd7 {[%clk 0:02:35.2]} 16. Nb3 {[%clk 0:02:34.3]} 16... Rad8 {[%clk
0:02:30.3]} 17. f3 {[%clk 0:02:33.4]} 17... Nb8 {[%clk 0:01:58.7]} 18. Be3
{[%clk 0:02:28.8]} 18... h5 {[%clk 0:01:56.7]} 19. a5 {[%clk 0:02:28.5]} 19...
b5 {[%clk 0:01:55.2]} 20. Nb2 {[%clk 0:02:29.1]} 20... h4 {[%clk 0:01:53.6]} 21.
Nc5 {[%clk 0:02:24.3]} 21... Bc8 {[%clk 0:01:53.3]} 22. Rad1 {[%clk 0:02:24]}
22... Nh5 {[%clk 0:01:53.2]} 23. Rxd8 {[%clk 0:02:23.6]} 23... Rxd8 {[%clk
0:01:53.8]} 24. Rd1 {[%clk 0:02:24]} 24... Nc6 {[%clk 0:01:50.1]} 25. Rxd8+
{[%clk 0:02:20.7]} 25... Nxd8 {[%clk 0:01:51]} 26. Qd2 {[%clk 0:02:18.5]} 26...
Ne6 {[%clk 0:01:50]} 27. c4 {[%clk 0:02:12.7]} 27... c6 {[%clk 0:01:48.9]} 28.
cxb5 {[%clk 0:02:12.6]} 28... cxb5 {[%clk 0:01:48.8]} 29. Nd1 {[%clk 0:02:12.4]}
29... Bf8 {[%clk 0:01:46.2]} 30. Nc3 {[%clk 0:02:12.3]} 30... Nhf4 {[%clk
0:01:39.6]} 31. Nd5 {[%clk 0:02:11.1]} 31... Nxd5 {[%clk 0:01:31.7]} 32. Qxd5
{[%clk 0:02:05]} 32... Nd4 {[%clk 0:01:29.1]} 33. Nd3 {[%clk 0:01:44.3]} 33...
Bg7 {[%clk 0:01:24.2]} 34. Nc5 {[%clk 0:01:41.8]} 34... h3 {[%clk 0:01:23.1]}
35. Qa8 {[%clk 0:01:23.5]} 35... Qf8 {[%clk 0:00:56]} 36. Bg5 {[%clk 0:01:00.2]}
36... hxg2 {[%clk 0:00:54.9]} 37. Bxg2 {[%clk 0:01:00]} 37... Ne6 {[%clk
0:00:54.7]} 38. Be7 {[%clk 0:00:59.3]} 38... Qxe7 {[%clk 0:00:51.6]} 39. Qxc8+
{[%clk 0:00:59]} 39... Kh7 {[%clk 0:00:48.2]} 40. Nxe6 {[%clk 0:00:56.6]} 40...
fxe6 {[%clk 0:00:49.1]} 41. Qxa6 {[%clk 0:00:55.6]} 41... Qxb4 {[%clk
0:00:49.4]} 42. Qxe6 {[%clk 0:00:50.1]} 42... Qd4+ {[%clk 0:00:46.7]} 43. Kf1
{[%clk 0:00:48.1]} 43... Bf8 {[%clk 0:00:46.1]} 44. Qf7+ {[%clk 0:00:47.4]}
44... Bg7 {[%clk 0:00:46.6]} 45. Bh3 {[%clk 0:00:45.2]} 45... Qa1+ {[%clk
0:00:45.4]} 46. Kg2 {[%clk 0:00:45]} 46... Qxa5 {[%clk 0:00:46.3]} 47. Be6
{[%clk 0:00:43.3]} 47... Qd2+ {[%clk 0:00:46.5]} 48. Kg3 {[%clk 0:00:42.3]}
48... b4 {[%clk 0:00:45.9]} 49. h4 {[%clk 0:00:40.2]} 49... Kh6 {[%clk
0:00:46.1]} 50. h5 {[%clk 0:00:15.6]} 50... gxh5 {[%clk 0:00:43.4]} 51. Bf5
{[%clk 0:00:15.6]} 51... Qg5+ {[%clk 0:00:43.2]} 52. Kf2 {[%clk 0:00:15.5]}
52... h4 {[%clk 0:00:41.3]} 53. Qg8 {[%clk 0:00:14.6]} 53... Qf6 {[%clk
0:00:27.7]} 54. f4 {[%clk 0:00:12.2]} 54... exf4 {[%clk 0:00:26.3]} 55. Qh7+
{[%clk 0:00:10.7]} 55... Kg5 {[%clk 0:00:26.7]} 56. Kf3 {[%clk 0:00:11]} 56...
Qh6 {[%clk 0:00:23]} 57. Qg8 {[%clk 0:00:07.9]} 57... h3 {[%clk 0:00:22.1]} 58.
Qd8+ {[%clk 0:00:06.8]} 58... Qf6 {[%clk 0:00:22.3]} 59. Qd1 {[%clk 0:00:06.9]}
59... Qc3+ {[%clk 0:00:22.1]} 60. Kf2 {[%clk 0:00:06.4]} 60... Qg3+ {[%clk
0:00:21]} 61. Kf1 {[%clk 0:00:06.9]} 61... Qg2+ {[%clk 0:00:21.1]} 62. Ke1
{[%clk 0:00:07.4]} 62... Bc3+ {[%clk 0:00:21.5]} 0-1

[Event "Early-Titled-Tuesday-Blitz-January-16-2024"]
[Site "Chess.com"]
[Date "2024.01.16"]
[Round "11"]
[White "PolandHussars"]
[Black "GeorgiosSouleidis"]
[Result "0-1"]
[WhiteElo "2593"]
[BlackElo "2673"]
[TimeControl "180+1"]
[EndTime "10:10:13 PST"]
[Termination "GeorgiosSouleidis won on time"]

1. e4 {[%clk 0:03:00.9]} 1... c5 {[%clk 0:03:00]} 2. g3 {[%clk 0:02:58.9]} 2...
e6 {[%clk 0:02:56.6]} 3. Bg2 {[%clk 0:02:59]} 3... a6 {[%clk 0:02:57.2]} 4. Ne2
{[%clk 0:02:59]} 4... b5 {[%clk 0:02:57.7]} 5. O-O {[%clk 0:02:50.8]} 5... Bb7
{[%clk 0:02:58]} 6. d4 {[%clk 0:02:46.9]} 6... cxd4 {[%clk 0:02:58]} 7. Nxd4
{[%clk 0:02:47.4]} 7... d6 {[%clk 0:02:54.5]} 8. Re1 {[%clk 0:02:46.5]} 8... Qc7
{[%clk 0:02:51.4]} 9. Nc3 {[%clk 0:02:46.3]} 9... Nf6 {[%clk 0:02:46.2]} 10. Nd5
{[%clk 0:02:39.9]} 10... Nxd5 {[%clk 0:02:34.4]} 11. exd5 {[%clk 0:02:40.8]}
11... e5 {[%clk 0:02:34.8]} 12. f4 {[%clk 0:02:14.7]} 12... Nd7 {[%clk
0:02:24.1]} 13. Nc6 {[%clk 0:02:11.7]} 13... Be7 {[%clk 0:01:59]} 14. f5 {[%clk
0:01:35.2]} 14... Bxc6 {[%clk 0:01:48.2]} 15. dxc6 {[%clk 0:01:34.5]} 15... Nf6
{[%clk 0:01:47.6]} 16. Bg5 {[%clk 0:01:25.8]} 16... Ng8 {[%clk 0:01:13.8]} 17.
Be3 {[%clk 0:01:18.4]} 17... Nf6 {[%clk 0:01:12.8]} 18. a4 {[%clk 0:01:04.7]}
18... O-O {[%clk 0:01:05.5]} 19. axb5 {[%clk 0:01:00.5]} 19... axb5 {[%clk
0:01:06.4]} 20. Qe2 {[%clk 0:00:57.3]} 20... d5 {[%clk 0:00:45.5]} 21. Qxb5
{[%clk 0:00:48.4]} 21... Rab8 {[%clk 0:00:37.1]} 22. Qe2 {[%clk 0:00:24.7]}
22... Qxc6 {[%clk 0:00:32.1]} 23. c4 {[%clk 0:00:20.5]} 23... Qxc4 {[%clk
0:00:27.2]} 24. Qxc4 {[%clk 0:00:19.7]} 24... dxc4 {[%clk 0:00:28.1]} 25. Re2
{[%clk 0:00:19.7]} 25... Ng4 {[%clk 0:00:26.4]} 26. Kf1 {[%clk 0:00:16]} 26...
Nxh2+ {[%clk 0:00:23.7]} 27. Ke1 {[%clk 0:00:15.9]} 27... Ng4 {[%clk 0:00:24.6]}
28. Bg1 {[%clk 0:00:15.9]} 28... Bb4+ {[%clk 0:00:24.7]} 29. Kd1 {[%clk
0:00:15.6]} 29... Rfd8+ {[%clk 0:00:24.8]} 30. Kc1 {[%clk 0:00:16.2]} 30... c3
{[%clk 0:00:23]} 31. bxc3 {[%clk 0:00:14.3]} 31... Bxc3 {[%clk 0:00:23.4]} 32.
Rb1 {[%clk 0:00:14.4]} 32... Rxb1+ {[%clk 0:00:22.6]} 33. Kxb1 {[%clk
0:00:14.4]} 33... Rd1+ {[%clk 0:00:23.1]} 34. Kc2 {[%clk 0:00:15]} 34... Rxg1
{[%clk 0:00:21.9]} 35. Kxc3 {[%clk 0:00:15.6]} 35... h5 {[%clk 0:00:20.4]} 36.
Kd3 {[%clk 0:00:16.2]} 36... Kh7 {[%clk 0:00:19.6]} 37. Ke4 {[%clk 0:00:16.8]}
37... Kh6 {[%clk 0:00:19.7]} 38. Kf3 {[%clk 0:00:17.3]} 38... Kg5 {[%clk
0:00:19.8]} 39. Ke4 {[%clk 0:00:16.3]} 39... Ra1 {[%clk 0:00:18.9]} 40. Bf3
{[%clk 0:00:15.6]} 40... Ra4+ {[%clk 0:00:18.7]} 41. Kd5 {[%clk 0:00:16.2]}
41... Rd4+ {[%clk 0:00:17.1]} 42. Kc5 {[%clk 0:00:16.4]} 42... Kxf5 {[%clk
0:00:16.4]} 43. Re1 {[%clk 0:00:16.9]} 43... Kg5 {[%clk 0:00:12.6]} 44. Bxg4
{[%clk 0:00:16.4]} 44... Rxg4 {[%clk 0:00:11]} 45. Rxe5+ {[%clk 0:00:16.7]}
45... f5 {[%clk 0:00:11.8]} 46. Re3 {[%clk 0:00:16.7]} 46... h4 {[%clk
0:00:11.8]} 47. gxh4+ {[%clk 0:00:16.4]} 47... Rxh4 {[%clk 0:00:12.4]} 48. Kd5
{[%clk 0:00:17.3]} 48... Ra4 {[%clk 0:00:12.2]} 49. Ke6 {[%clk 0:00:17.4]} 49...
Ra6+ {[%clk 0:00:11.9]} 50. Kf7 {[%clk 0:00:17.6]} 50... Rf6+ {[%clk 0:00:10.5]}
51. Kxg7 {[%clk 0:00:17.8]} 51... f4 {[%clk 0:00:11.3]} 52. Re1 {[%clk
0:00:17.1]} 52... Ra6 {[%clk 0:00:08.9]} 53. Re5+ {[%clk 0:00:15.9]} 53... Kg4
{[%clk 0:00:09.2]} 54. Rb5 {[%clk 0:00:15.2]} 54... f3 {[%clk 0:00:09.3]} 55.
Ra5 {[%clk 0:00:15.5]} 55... Rxa5 {[%clk 0:00:09.3]} 0-1

[Event "Early-Titled-Tuesday-Blitz-January-16-2024"]
[Site "Chess.com"]
[Date "2024.01.16"]
[Round "11"]
[White "Kopytkin"]
[Black "anasta10"]
[Result "0-1"]
[WhiteElo "2389"]
[BlackElo "2517"]
[TimeControl "180+1"]
[EndTime "10:10:17 PST"]
[Termination "anasta10 won on time"]

1. d4 {[%clk 0:03:00.9]} 1... Nf6 {[%clk 0:02:59]} 2. Bg5 {[%clk 0:03:00.6]}
2... Ne4 {[%clk 0:02:58.8]} 3. Bf4 {[%clk 0:03:00.7]} 3... d5 {[%clk 0:02:59.5]}
4. e3 {[%clk 0:03:01.2]} 4... c5 {[%clk 0:02:59.3]} 5. Bd3 {[%clk 0:03:01.4]}
5... cxd4 {[%clk 0:02:59.3]} 6. exd4 {[%clk 0:03:01.2]} 6... Nc6 {[%clk
0:03:00]} 7. c3 {[%clk 0:03:01.4]} 7... g5 {[%clk 0:02:51.1]} 8. Be3 {[%clk
0:02:46.3]} 8... h6 {[%clk 0:02:50.8]} 9. Nf3 {[%clk 0:02:40.8]} 9... Bg7 {[%clk
0:02:50.1]} 10. O-O {[%clk 0:02:39.8]} 10... Bf5 {[%clk 0:02:42.1]} 11. c4
{[%clk 0:02:35.4]} 11... dxc4 {[%clk 0:02:25.8]} 12. Bxc4 {[%clk 0:02:33.3]}
12... O-O {[%clk 0:02:24.3]} 13. Nc3 {[%clk 0:02:32.1]} 13... Nd6 {[%clk
0:02:23.5]} 14. Bb3 {[%clk 0:02:25.9]} 14... Bg4 {[%clk 0:02:21]} 15. h3 {[%clk
0:02:22.9]} 15... Bxf3 {[%clk 0:02:19.5]} 16. Qxf3 {[%clk 0:02:21.4]} 16... Nxd4
{[%clk 0:02:11.2]} 17. Bxd4 {[%clk 0:02:19.8]} 17... Bxd4 {[%clk 0:02:11.9]} 18.
Rad1 {[%clk 0:02:19.6]} 18... Bxc3 {[%clk 0:02:04.2]} 19. bxc3 {[%clk
0:02:10.9]} 19... Qc7 {[%clk 0:01:54.1]} 20. Rfe1 {[%clk 0:02:02]} 20... Rac8
{[%clk 0:01:53.5]} 21. Qh5 {[%clk 0:01:42.5]} 21... Kg7 {[%clk 0:01:51.1]} 22.
h4 {[%clk 0:01:43]} 22... e6 {[%clk 0:00:59.3]} 23. hxg5 {[%clk 0:01:38.1]}
23... Nf5 {[%clk 0:00:59.8]} 24. gxh6+ {[%clk 0:01:32.3]} 24... Kh8 {[%clk
0:00:59.4]} 25. Qg5 {[%clk 0:01:17.2]} 25... Qxc3 {[%clk 0:00:51.1]} 26. Rc1
{[%clk 0:00:59.8]} 26... Qb2 {[%clk 0:00:50.5]} 27. Rxc8 {[%clk 0:00:50.1]}
27... Rxc8 {[%clk 0:00:51.4]} 28. g4 {[%clk 0:00:44.9]} 28... Rg8 {[%clk
0:00:50]} 29. Qf4 {[%clk 0:00:40.5]} 29... Rg6 {[%clk 0:00:28.9]} 30. Kf1 {[%clk
0:00:35.7]} 30... Nxh6 {[%clk 0:00:23.8]} 31. Bd1 {[%clk 0:00:20.6]} 31... Qb5+
{[%clk 0:00:17.2]} 32. Be2 {[%clk 0:00:19.6]} 32... Qg5 {[%clk 0:00:16.8]} 33.
Qxg5 {[%clk 0:00:19.5]} 33... Rxg5 {[%clk 0:00:17]} 34. f3 {[%clk 0:00:19.3]}
34... Rc5 {[%clk 0:00:16.7]} 35. Rb1 {[%clk 0:00:18.8]} 35... b6 {[%clk
0:00:16.6]} 36. Rb2 {[%clk 0:00:19.2]} 36... Kg7 {[%clk 0:00:16.9]} 37. Kf2
{[%clk 0:00:19.4]} 37... Ng8 {[%clk 0:00:17.4]} 38. Rd2 {[%clk 0:00:19.6]} 38...
Nf6 {[%clk 0:00:17.8]} 39. Rd8 {[%clk 0:00:16.7]} 39... Rc2 {[%clk 0:00:17.3]}
40. Ke3 {[%clk 0:00:15.6]} 40... Rxa2 {[%clk 0:00:17.5]} 41. Bc4 {[%clk
0:00:14.5]} 41... Rc2 {[%clk 0:00:14.7]} 42. Bd3 {[%clk 0:00:13.4]} 42... Rc7
{[%clk 0:00:13.8]} 43. g5 {[%clk 0:00:12.8]} 43... Nd5+ {[%clk 0:00:13.7]} 44.
Kd4 {[%clk 0:00:13]} 44... a5 {[%clk 0:00:14.3]} 45. f4 {[%clk 0:00:12.3]} 45...
Nxf4 {[%clk 0:00:14.3]} 46. Be4 {[%clk 0:00:11.1]} 46... a4 {[%clk 0:00:14.3]}
47. g6 {[%clk 0:00:11.6]} 47... Nxg6 {[%clk 0:00:14.5]} 48. Bxg6 {[%clk
0:00:10.8]} 48... Kxg6 {[%clk 0:00:14.3]} 49. Rb8 {[%clk 0:00:11.7]} 49... Ra7
{[%clk 0:00:13.9]} 50. Rxb6 {[%clk 0:00:11.5]} 50... a3 {[%clk 0:00:14.2]} 51.
Rb1 {[%clk 0:00:11.9]} 51... a2 {[%clk 0:00:14.9]} 52. Ra1 {[%clk 0:00:12.2]}
52... f5 {[%clk 0:00:15.2]} 53. Ke5 {[%clk 0:00:12.1]} 53... Ra6 {[%clk
0:00:15.7]} 54. Rg1+ {[%clk 0:00:11]} 54... Kh5 {[%clk 0:00:15.4]} 55. Ra1
{[%clk 0:00:11.9]} 55... Kg4 {[%clk 0:00:15.7]} 56. Rg1+ {[%clk 0:00:12]} 56...
Kf3 {[%clk 0:00:16.3]} 57. Rf1+ {[%clk 0:00:12.4]} 57... Ke2 {[%clk 0:00:16.7]}
58. Ra1 {[%clk 0:00:12.4]} 58... Kd2 {[%clk 0:00:17.2]} 59. Kd4 {[%clk
0:00:11.5]} 59... f4 {[%clk 0:00:16.8]} 60. Ke4 {[%clk 0:00:11.7]} 60... Kc2
{[%clk 0:00:17.1]} 61. Kxf4 {[%clk 0:00:12]} 61... Kb2 {[%clk 0:00:17.5]} 0-1

[Event "Early-Titled-Tuesday-Blitz-January-16-2024"]
[Site "Chess.com"]
[Date "2024.01.16"]
[Round "11"]
[White "lefonghua"]
[Black "Mistango"]
[Result "1/2-1/2"]
[WhiteElo "2640"]
[BlackElo "2502"]
[TimeControl "180+1"]
[EndTime "10:10:21 PST"]
[Termination "Game drawn by repetition"]

1. d4 {[%clk 0:03:00.9]} 1... d6 {[%clk 0:02:56]} 2. e4 {[%clk 0:03:00.6]} 2...
e5 {[%clk 0:02:55.4]} 3. Ne2 {[%clk 0:03:00.9]} 3... Nc6 {[%clk 0:02:54.6]} 4.
c4 {[%clk 0:02:55.4]} 4... Nf6 {[%clk 0:02:53.2]} 5. Nbc3 {[%clk 0:02:55.6]}
5... g6 {[%clk 0:02:52.1]} 6. f3 {[%clk 0:02:55.5]} 6... Bg7 {[%clk 0:02:51.8]}
7. Be3 {[%clk 0:02:55.6]} 7... O-O {[%clk 0:02:51.5]} 8. Qd2 {[%clk 0:02:50.9]}
8... Nh5 {[%clk 0:02:34.2]} 9. d5 {[%clk 0:02:45.1]} 9... Ne7 {[%clk 0:02:31]}
10. g4 {[%clk 0:02:42.8]} 10... Nf6 {[%clk 0:02:20.5]} 11. O-O-O {[%clk
0:02:42.5]} 11... Nd7 {[%clk 0:02:20.1]} 12. Kb1 {[%clk 0:02:37.2]} 12... a6
{[%clk 0:02:15.5]} 13. Ng3 {[%clk 0:02:33.3]} 13... b5 {[%clk 0:02:14.6]} 14.
cxb5 {[%clk 0:02:31.7]} 14... axb5 {[%clk 0:02:14.7]} 15. Bxb5 {[%clk
0:02:32.3]} 15... Ba6 {[%clk 0:02:14.7]} 16. Ba4 {[%clk 0:02:21.1]} 16... Nc8
{[%clk 0:01:57.8]} 17. Bc6 {[%clk 0:02:14.3]} 17... Rb8 {[%clk 0:01:54.3]} 18.
h4 {[%clk 0:02:14.7]} 18... Ndb6 {[%clk 0:01:49.9]} 19. Qf2 {[%clk 0:01:57.5]}
19... Ne7 {[%clk 0:01:35.8]} 20. b3 {[%clk 0:01:40.1]} 20... Nc4 {[%clk
0:01:15.4]} 21. Bc1 {[%clk 0:01:24.9]} 21... Nxc6 {[%clk 0:01:09.8]} 22. dxc6
{[%clk 0:01:25.2]} 22... Na5 {[%clk 0:01:09]} 23. Nd5 {[%clk 0:01:19]} 23...
Nxc6 {[%clk 0:01:07.9]} 24. Bb2 {[%clk 0:01:17]} 24... Nb4 {[%clk 0:00:57.4]}
25. Nxb4 {[%clk 0:01:11.1]} 25... Rxb4 {[%clk 0:00:56.3]} 26. Qd2 {[%clk
0:01:10]} 26... Rb6 {[%clk 0:00:44.9]} 27. Nf1 {[%clk 0:01:07.2]} 27... Qf6
{[%clk 0:00:42.7]} 28. Qe3 {[%clk 0:00:57.6]} 28... Qf4 {[%clk 0:00:35.5]} 29.
Qxf4 {[%clk 0:00:53.4]} 29... exf4 {[%clk 0:00:36.4]} 30. Bxg7 {[%clk
0:00:53.3]} 30... Kxg7 {[%clk 0:00:37.2]} 31. Rh2 {[%clk 0:00:44.1]} 31... Rfb8
{[%clk 0:00:29.2]} 32. Rc2 {[%clk 0:00:41.3]} 32... c5 {[%clk 0:00:27.9]} 33.
Kc1 {[%clk 0:00:32.8]} 33... h5 {[%clk 0:00:24.7]} 34. g5 {[%clk 0:00:25.3]}
34... f6 {[%clk 0:00:24.7]} 35. gxf6+ {[%clk 0:00:22.2]} 35... Kxf6 {[%clk
0:00:25.6]} 36. Nd2 {[%clk 0:00:21.8]} 36... g5 {[%clk 0:00:21.7]} 37. hxg5+
{[%clk 0:00:19.4]} 37... Kxg5 {[%clk 0:00:22.6]} 38. Rg1+ {[%clk 0:00:18]} 38...
Kf6 {[%clk 0:00:22.6]} 39. Nc4 {[%clk 0:00:17]} 39... Bxc4 {[%clk 0:00:22.6]}
40. Rxc4 {[%clk 0:00:17.9]} 40... Rb4 {[%clk 0:00:22.9]} 41. Rc2 {[%clk
0:00:16.2]} 41... c4 {[%clk 0:00:21.6]} 42. Rd2 {[%clk 0:00:11]} 42... cxb3
{[%clk 0:00:19.3]} 43. axb3 {[%clk 0:00:09.5]} 43... R8b6 {[%clk 0:00:17.6]} 44.
Rgd1 {[%clk 0:00:07.5]} 44... Ke6 {[%clk 0:00:15.1]} 45. Rh1 {[%clk 0:00:06.6]}
45... Rxb3 {[%clk 0:00:14.9]} 46. Rxh5 {[%clk 0:00:06.6]} 46... Rxf3 {[%clk
0:00:10.9]} 47. Rf5 {[%clk 0:00:05.4]} 47... Rf1+ {[%clk 0:00:07.7]} 48. Kc2
{[%clk 0:00:05.5]} 48... f3 {[%clk 0:00:07.2]} 49. Rd3 {[%clk 0:00:04.5]} 49...
f2 {[%clk 0:00:05.6]} 50. Rdf3 {[%clk 0:00:04.5]} 50... Re1 {[%clk 0:00:05.1]}
51. Rxf2 {[%clk 0:00:03.7]} 51... Rxe4 {[%clk 0:00:04.6]} 52. Kd3 {[%clk
0:00:04.4]} 52... Re5 {[%clk 0:00:03.7]} 53. Rxe5+ {[%clk 0:00:03.9]} 53... dxe5
{[%clk 0:00:03.7]} 54. Ke4 {[%clk 0:00:03.8]} 54... Rb4+ {[%clk 0:00:03.5]} 55.
Ke3 {[%clk 0:00:04.4]} 55... Kd5 {[%clk 0:00:03.6]} 56. Ra2 {[%clk 0:00:04.5]}
56... Rb3+ {[%clk 0:00:03.1]} 57. Ke2 {[%clk 0:00:04.6]} 57... e4 {[%clk
0:00:04]} 58. Ra4 {[%clk 0:00:04.3]} 58... Ke5 {[%clk 0:00:04.2]} 59. Ra8 {[%clk
0:00:04.3]} 59... Rb2+ {[%clk 0:00:04.1]} 60. Ke3 {[%clk 0:00:04.5]} 60... Rb3+
{[%clk 0:00:04.6]} 61. Ke2 {[%clk 0:00:05.1]} 61... Rb2+ {[%clk 0:00:05]} 62.
Ke3 {[%clk 0:00:05.7]} 62... Rb3+ {[%clk 0:00:05.5]} 63. Ke2 {[%clk 0:00:06.3]}
1/2-1/2